bitfinex-derivatives/quotes_SOLF0:USTF0_20251119
["timestamp","ask_amount","ask_price","bid_price","bid_amount"]
[1763531327647,38.68,137.72,137.65,8.96727446]
[1763531327853,38.68,137.72,137.65,2.42387446]
[1763531328242,0.05233367,137.7,137.65,2.42387446]
[1763531328446,3.04233367,137.7,137.65,0.05387446]
[1763531328845,2.99,137.69,137.65,0.05387446]
[1763531329044,2.99,137.67,137.65,0.05387446]
[1763531329246,41.67,137.66,137.57,41.05]
[1763531329440,41.67,137.66,137.58,2.37]
[1763531329755,2.99,137.69,137.61,2.37]
[1763531330148,2.99,137.69,137.62,6.5449]
[1763531330351,0.04659599,137.67,137.64,0.04737609]
[1763531332952,3.03659599,137.67,137.64,0.04737609]
[1763531334854,0.04659599,137.67,137.64,0.04737609]
[1763531335153,0.04659599,137.67,137.64,6.59137609]
[1763531335747,3.03659599,137.67,137.64,6.59137609]
[1763531335950,3.03659599,137.67,137.64,0.04737609]
[1763531336454,2.99,137.65,137.56,2.37]
[1763531337045,2.99,137.64,137.58,6.5468]
[1763531337250,2.99,137.63,137.58,6.5468]
[1763531337450,0.04629534,137.62,137.59,0.0502272]
[1763531337655,3.03629534,137.62,137.59,0.0502272]
[1763531340862,0.04629534,137.62,137.6,13.30981026]
[1763531341058,41.67,137.66,137.6,110.95871026]
[1763531341059,2.99,137.66,137.6,110.95871026]
[1763531341257,2.99,137.71,137.62,6.76401026]
[1763531341460,41.67,137.68,137.62,6.76401026]
[1763531342065,0.04676899,137.66,137.64,0.04945046]
[1763531342255,2.99,137.65,137.59,6.76401026]
[1763531342559,0.04676899,137.66,137.59,6.76401026]
[1763531342560,2.99,137.64,137.61,0.04587852]
[1763531343258,2.99,137.64,137.61,6.80988878]
[1763531343566,2.99,137.64,137.61,0.04587852]
[1763531344264,3.22,137.63,137.61,0.04587852]
[1763531344469,41.9,137.65,137.61,0.04587852]
[1763531344763,3.22,137.65,137.61,0.04587852]
[1763531346163,3.22,137.63,137.61,0.04587852]
[1763531347459,38.68,137.65,137.54,101.8702]
[1763531347460,3.22,137.61,137.54,6.76401026]
[1763531347776,3.22,137.65,137.54,2.41]
[1763531348069,3.22,137.64,137.56,2.41]
[1763531348462,0.05388922,137.61,137.59,0.05005652]
[1763531348865,3.27388922,137.61,137.59,0.05005652]
[1763531350664,0.05388922,137.61,137.59,0.05005652]
[1763531352272,3.27388922,137.61,137.59,0.05005652]
[1763531354081,3.22,137.59,137.51,47.7001]
[1763531354265,3.22,137.59,137.51,143.0424]
[1763531354460,3.22,137.59,137.51,41.15]
[1763531354665,3.22,137.59,137.51,47.7001]
[1763531354874,0.05459559,137.56,137.54,0.05441319]
[1763531355277,3.27459559,137.56,137.54,0.05441319]
[1763531355468,0.05459559,137.56,137.54,2.46441319]
[1763531355668,0.05459559,137.56,137.54,0.05441319]
[1763531355669,3.27459559,137.56,137.54,0.05441319]
[1763531356566,0.05459559,137.56,137.54,0.05441319]
[1763531359869,3.27459559,137.56,137.54,0.05441319]
[1763531361372,0.05459559,137.56,137.54,0.05441319]
[1763531363270,3.19459559,137.56,137.54,0.05441319]
[1763531364265,0.05459559,137.56,137.54,2.46441319]
[1763531364473,0.05459559,137.56,137.54,0.05441319]
[1763531364667,3.19459559,137.56,137.54,0.05441319]
[1763531366677,0.05459559,137.56,137.54,0.05441319]
[1763531367979,0.05459559,137.56,137.54,2.46441319]
[1763531369087,9.6854,137.62,137.55,6.5482]
[1763531369274,41.9,137.62,137.55,8.9582]
[1763531369476,3.14,137.62,137.55,2.41]
[1763531369677,3.14,137.62,137.57,8.9573]
[1763531370186,3.18885174,137.61,137.58,0.05201311]
[1763531370781,3.14,137.6,137.58,0.05201311]
[1763531371086,0.04885174,137.61,137.49,110.96097404]
[1763531371087,3.14,137.58,137.5,2.41]
[1763531371286,3.14,137.58,137.5,8.9607]
[1763531371584,3.14,137.58,137.51,2.41]
[1763531372388,0.05430461,137.56,137.53,0.04685643]
[1763531376087,0.05430461,137.56,137.53,2.45685643]
[1763531376283,3.08430461,137.56,137.53,0.04685643]
[1763531379491,0.05430461,137.56,137.53,2.45685643]
[1763531380776,3.08430461,137.56,137.53,0.04685643]
[1763531385196,0.05430461,137.56,137.53,2.45685643]
[1763531385693,0.05430461,137.56,137.53,0.04685643]
[1763531386095,0.05430461,137.56,137.53,2.45685643]
[1763531386598,3.08430461,137.56,137.53,0.04685643]
[1763531387490,0.05430461,137.56,137.53,2.45685643]
[1763531388095,0.05430461,137.56,137.53,9.00605643]
[1763531388587,0.05430461,137.56,137.53,0.04685643]
[1763531388588,3.08430461,137.56,137.53,0.04685643]
[1763531388793,0.05430461,137.56,137.53,2.45685643]
[1763531389297,0.05430461,137.56,137.54,2.41]
[1763531389790,0.05430461,137.56,137.53,2.45685643]
[1763531390293,0.05430461,137.56,137.53,9.22086669]
[1763531390495,3.08430461,137.56,137.53,6.81086669]
[1763531391297,3.08430461,137.56,137.53,0.04685643]
[1763531391592,3.08430461,137.56,137.53,9.22086669]
[1763531392198,0.05430461,137.56,137.54,2.41]
[1763531392391,0.05430461,137.56,137.53,15.76996669]
[1763531392588,0.05430461,137.56,137.54,2.41]
[1763531393097,0.05430461,137.56,137.54,9.17401026]
[1763531394097,0.05430461,137.56,137.54,6.76401026]
[1763531394501,3.08430461,137.56,137.54,6.76401026]
[1763531394690,3.08430461,137.56,137.53,0.04685643]
[1763531395196,9.63240461,137.56,137.53,2.45685643]
[1763531395402,6.60240461,137.56,137.53,2.45685643]
[1763531395698,0.05430461,137.56,137.53,2.45685643]
[1763531396195,3.08430461,137.56,137.53,6.81086669]
[1763531396394,0.05430461,137.56,137.54,2.41]
[1763531396592,0.05430461,137.56,137.55,2.41]
[1763531396786,0.05430461,137.56,137.55,9.17401026]
[1763531396998,3.03,137.64,137.56,2.41]
[1763531397201,3.03,137.64,137.57,9.20918893]
[1763531397497,3.03,137.64,137.57,15.75648893]
[1763531397700,3.03,137.64,137.58,6.79918893]
[1763531397895,3.07645235,137.62,137.6,0.05116432]
[1763531398500,0.04645235,137.62,137.6,9.26035325]
[1763531398895,0.04645235,137.62,137.6,6.85035325]
[1763531399302,0.04645235,137.62,137.6,0.05116432]
[1763531399501,3.07645235,137.62,137.6,0.05116432]
[1763531400097,3.03,137.61,137.6,0.05116432]
[1763531400600,3.03,137.61,137.55,6.79918893]
[1763531400601,3.03,137.61,137.56,6.79918893]
[1763531400803,3.03,137.59,137.54,6.79918893]
[1763531401806,3.03,137.57,137.55,0.05016602]
[1763531402195,0.05578003,137.58,137.55,0.05016602]
[1763531402391,0.05578003,137.58,137.55,9.25935495]
[1763531402596,3.08578003,137.58,137.55,6.84935495]
[1763531403211,3.08578003,137.58,137.55,0.05016602]
[1763531404102,3.08578003,137.58,137.55,6.84935495]
[1763531404611,3.23,137.57,137.55,0.05016602]
[1763531405199,3.23,137.56,137.55,0.05016602]
[1763531406100,3.28578003,137.58,137.55,0.05016602]
[1763531407607,3.23,137.56,137.55,0.05016602]
[1763531407798,3.28578003,137.58,137.55,0.05016602]
[1763531409210,3.23,137.57,137.55,0.05016602]
[1763531409713,3.23,137.56,137.55,0.05016602]
[1763531411499,9.83308003,137.58,137.55,0.05016602]
[1763531411705,3.23,137.57,137.55,0.05016602]
[1763531411909,3.28578003,137.58,137.55,0.05016602]
[1763531412110,0.05578003,137.58,137.56,2.4]
[1763531412308,3.28578003,137.58,137.55,6.84935495]
[1763531412914,3.23,137.57,137.55,0.05016602]
[1763531413311,9.7778,137.57,137.55,0.05016602]
[1763531413512,3.23,137.56,137.55,0.05016602]
[1763531416915,38.66,137.57,137.55,0.05016602]
[1763531417128,41.89,137.57,137.55,0.05016602]
[1763531417522,41.94578003,137.58,137.55,0.05016602]
[1763531417723,3.23,137.57,137.55,0.05016602]
[1763531418620,3.23,137.56,137.55,0.05016602]
[1763531419129,9.7777,137.57,137.55,0.05016602]
[1763531419313,3.23,137.56,137.55,0.05016602]
[1763531419520,3.23,137.57,137.55,0.05016602]
[1763531420726,3.23,137.56,137.55,0.05016602]
[1763531421819,3.23,137.56,137.5,6.79918893]
[1763531422025,3.23,137.56,137.51,2.4]
[1763531422325,3.23,137.55,137.51,2.4]
[1763531422730,0.04967365,137.54,137.52,0.04989432]
[1763531425531,0.04967365,137.54,137.52,2.44989432]
[1763531426227,0.04967365,137.54,137.53,2.4]
[1763531426630,0.04967365,137.54,137.53,9.1920475]
[1763531426828,0.04967365,137.54,137.53,2.4]
[1763531427026,3.09,137.58,137.53,2.4]
[1763531427223,110.44744341,137.64,137.56,2.4]
[1763531427224,3.09,137.6,137.56,2.4]
[1763531428125,3.14261782,137.59,137.57,0.04936766]
[1763531428832,3.09,137.58,137.57,0.04936766]
[1763531431127,0.05261782,137.59,137.57,0.04936766]
[1763531431326,0.05261782,137.59,137.57,2.44936766]
[1763531431526,9.6338,137.65,137.58,2.4]
[1763531431728,48.2738,137.65,137.59,6.79101368]
[1763531431928,48.2738,137.65,137.58,9.19101368]
[1763531431929,3.09,137.64,137.58,9.19101368]
[1763531432141,3.09,137.63,137.59,2.4]
[1763531432345,41.73,137.64,137.6,2.4]
[1763531432544,0.04619383,137.63,137.61,2.44802418]
[1763531432745,0.05537101,137.63,137.61,2.45477763]
[1763531433940,0.05537101,137.63,137.61,0.05477763]
[1763531434144,3.08537101,137.63,137.61,0.05477763]
[1763531434737,9.63027101,137.63,137.61,0.05477763]
[1763531434933,3.03,137.62,137.61,0.05477763]
[1763531435547,0.05537101,137.63,137.61,0.05477763]
[1763531436046,3.08537101,137.63,137.61,0.05477763]
[1763531436244,0.05537101,137.63,137.61,0.05477763]
[1763531436541,41.65,137.7,137.62,9.19101368]
[1763531436749,3.03,137.67,137.62,6.79101368]
[1763531437048,3.03,137.67,137.61,6.79101368]
[1763531437348,101.7649,137.69,137.59,11.45467404]
[1763531437349,38.64,137.69,137.63,2.4]
[1763531437542,0.04711951,137.67,137.65,2.44957433]
[1763531437747,93.36977278,137.74,137.66,2.4]
[1763531437748,3.03,137.74,137.66,2.4]
[1763531437942,9.5696,137.74,137.67,9.16916611]
[1763531438251,104.7634,137.73,137.66,6.76916611]
[1763531438441,3.03,137.72,137.66,6.76916611]
[1763531438644,3.08423263,137.7,137.68,0.04933142]
[1763531439042,0.05423263,137.7,137.68,0.04933142]
[1763531439545,0.05423263,137.7,137.68,2.44933142]
[1763531441944,101.7137,137.76,137.68,2.44933142]
[1763531441945,3.03,137.76,137.68,2.44933142]
[1763531442142,3.03,137.85,137.75,2.4]
[1763531442340,104.6819,137.84,137.75,2.4]
[1763531442538,104.6888,137.83,137.75,2.4]
[1763531442747,9.566,137.82,137.75,2.4]
[1763531442942,0.0531577,137.8,137.77,0.05277957]
[1763531443348,0.0531577,137.8,137.77,2.45277957]
[1763531443745,3.0831577,137.8,137.77,0.05277957]
[1763531445255,3.03,137.79,137.77,0.05277957]
[1763531446550,9.5675,137.79,137.77,0.05277957]
[1763531446858,3.03,137.78,137.7,8.941]
[1763531447152,3.03,137.78,137.71,2.4]
[1763531447653,0.05605016,137.76,137.73,0.05413431]
[1763531447951,0.05605016,137.76,137.73,2.45413431]
[1763531448854,3.08605016,137.76,137.73,0.05413431]
[1763531449056,0.05605016,137.76,137.73,2.45413431]
[1763531449355,104.79685016,137.76,137.73,0.05413431]
[1763531449555,3.03,137.74,137.73,0.05413431]
[1763531449849,3.03,137.74,137.67,2.4]
[1763531450653,0.05352694,137.72,137.69,0.0459529]
[1763531451559,3.08352694,137.72,137.69,0.0459529]
[1763531452656,9.62412694,137.72,137.69,0.0459529]
[1763531452957,3.03,137.71,137.69,0.0459529]
[1763531453158,3.03,137.71,137.6,106.9801873]
[1763531453159,3.03,137.7,137.61,2.4]
[1763531453358,3.03,137.68,137.61,2.4]
[1763531453559,38.64,137.67,137.61,2.4]
[1763531454355,3.08161923,137.65,137.63,0.05548878]
[1763531456156,9.62561923,137.65,137.63,0.05548878]
[1763531456355,3.03,137.64,137.63,0.05548878]
[1763531457756,3.08161923,137.65,137.63,0.05548878]
[1763531458657,0.05161923,137.65,137.63,2.45548878]
[1763531458956,0.05161923,137.65,137.63,0.05548878]
[1763531459552,3.08161923,137.65,137.63,0.05548878]
[1763531460668,0.05161923,137.65,137.63,0.05548878]
[1763531461049,0.05161923,137.65,137.63,2.45548878]
[1763531461252,3.03,137.71,137.63,2.45548878]
[1763531461460,3.03,137.7,137.63,8.99988878]
[1763531461666,3.03,137.7,137.63,8.9444]
[1763531461867,3.03,137.7,137.59,2.4]
[1763531462165,0.05248178,137.66,137.63,0.05020223]
[1763531462368,0.05248178,137.66,137.63,2.45020223]
[1763531465571,3.19,137.65,137.63,0.05020223]
[1763531465866,0.05248178,137.66,137.63,0.05020223]
[1763531466070,3.24248178,137.66,137.63,0.05020223]
[1763531466867,0.05248178,137.66,137.63,2.45020223]
[1763531467469,3.24248178,137.66,137.63,0.05020223]
[1763531468870,9.78588178,137.66,137.63,0.05020223]
[1763531469370,0.05248178,137.66,137.63,0.05020223]
[1763531469766,3.24248178,137.66,137.63,0.05020223]
[1763531470978,3.19,137.65,137.63,0.05020223]
[1763531471968,9.7339,137.65,137.63,0.05020223]
[1763531472167,3.19,137.63,137.56,2.4]
[1763531472474,3.19,137.62,137.56,2.4]
[1763531473275,0.05073318,137.6,137.58,0.0521815]
[1763531473780,3.24073318,137.6,137.58,0.0521815]
[1763531474482,0.05073318,137.6,137.58,0.0521815]
[1763531475171,0.05073318,137.6,137.58,2.4521815]
[1763531475477,0.05073318,137.6,137.58,0.0521815]
[1763531475876,3.24073318,137.6,137.58,0.0521815]
[1763531477081,0.05073318,137.6,137.58,0.0521815]
[1763531477681,0.05073318,137.6,137.58,2.4521815]
[1763531478178,0.05073318,137.6,137.58,8.9988815]
[1763531478384,41.81,137.66,137.59,2.4]
[1763531478576,3.19,137.65,137.59,2.4]
[1763531479278,0.0469167,137.63,137.61,0.05418914]
[1763531479485,3.2369167,137.63,137.61,0.05418914]
[1763531479877,9.7817167,137.63,137.61,0.05418914]
[1763531480077,3.19,137.62,137.61,0.05418914]
[1763531481077,3.2369167,137.63,137.61,0.05418914]
[1763531481581,9.7817167,137.63,137.61,0.05418914]
[1763531481976,3.19,137.62,137.61,0.05418914]
[1763531482180,9.7817167,137.63,137.61,0.05418914]
[1763531482583,0.0469167,137.63,137.61,0.05418914]
[1763531482881,0.0469167,137.63,137.61,2.45418914]
[1763531483786,0.0469167,137.63,137.62,2.4]
[1763531484490,2.99,137.72,137.64,2.4]
[1763531484784,9.5307,137.72,137.65,2.4]
[1763531484994,2.99,137.72,137.65,2.4]
[1763531485289,0.04622699,137.7,137.67,0.04804062]
[1763531485490,3.03622699,137.7,137.67,0.04804062]
[1763531487387,104.79462699,137.7,137.67,0.04804062]
[1763531487576,2.99,137.67,137.61,2.4]
[1763531488489,0.05140306,137.65,137.63,0.05311837]
[1763531489086,0.05140306,137.65,137.63,2.45311837]
[1763531489490,2.99,137.72,137.64,2.4]
[1763531490387,3.04352369,137.69,137.67,0.05581173]
[1763531491495,9.58562369,137.69,137.67,0.05581173]
[1763531491680,2.99,137.68,137.67,0.05581173]
[1763531492487,2.99,137.65,137.6,6.76916611]
[1763531492686,2.99,137.65,137.59,6.76916611]
[1763531493092,2.99,137.62,137.58,2.46]
[1763531493291,101.7997,137.64,137.58,2.46]
[1763531493590,0.04928178,137.62,137.6,0.05510689]
[1763531493794,3.22928178,137.62,137.6,0.05510689]
[1763531494095,3.18,137.61,137.6,0.05510689]
[1763531495182,45.23468178,137.62,137.6,0.05510689]
[1763531495183,0.04928178,137.62,137.6,0.05510689]
[1763531495380,3.22928178,137.62,137.6,0.05510689]
[1763531495784,0.04928178,137.62,137.6,2.51510689]
[1763531495996,3.18,137.68,137.6,2.51510689]
[1763531496296,6.5435,137.66,137.6,9.22916611]
[1763531496497,3.18,137.67,137.6,9.22916611]
[1763531497199,0.04710903,137.65,137.62,0.05410994]
[1763531497589,3.22710903,137.65,137.62,0.05410994]
[1763531499385,3.22710903,137.65,137.62,2.51410994]
[1763531499386,0.04710903,137.65,137.62,2.51410994]
[1763531502599,3.22710903,137.65,137.62,0.05410994]
[1763531504400,3.18,137.64,137.62,0.05410994]
[1763531504991,3.18,137.63,137.56,6.76916611]
[1763531505187,3.18,137.62,137.56,6.76916611]
[1763531505393,3.18,137.62,137.57,6.76916611]
[1763531505601,3.18,137.62,137.57,9.22916611]
[1763531506097,0.05581122,137.61,137.59,9.22916611]
[1763531506302,0.04830201,137.61,137.59,9.27520531]
[1763531506800,0.04830201,137.61,137.59,0.0460392]
[1763531506989,3.22830201,137.61,137.59,0.0460392]
[1763531507689,0.04830201,137.61,137.59,2.5060392]
[1763531507894,0.04830201,137.61,137.6,4.44387094]
[1763531508102,3.18,137.67,137.6,11.21303705]
[1763531508909,6.5434,137.66,137.6,15.77506611]
[1763531509091,0.05251702,137.65,137.62,0.04994493]
[1763531509295,0.05251702,137.65,137.62,2.50994493]
[1763531510004,0.05251702,137.65,137.62,9.27911104]
[1763531510403,0.05251702,137.65,137.62,2.50994493]
[1763531511297,3.23251702,137.65,137.62,0.04994493]
[1763531514906,0.05251702,137.65,137.62,2.50994493]
[1763531515206,0.05251702,137.65,137.63,2.46]
[1763531517318,0.05251702,137.65,137.63,9.22916611]
[1763531517613,3.18,137.71,137.65,2.46]
[1763531518008,3.18,137.71,137.65,9.22916611]
[1763531518424,3.18,137.71,137.67,2.46]
[1763531518610,0.05557701,137.7,137.68,0.05014737]
[1763531519213,0.05557701,137.7,137.68,2.51014737]
[1763531519413,0.05557701,137.7,137.68,9.27931348]
[1763531520213,3.23557701,137.7,137.68,6.81931348]
[1763531520514,3.23557701,137.7,137.68,0.05014737]
[1763531521110,3.18,137.69,137.68,0.05014737]
[1763531521912,3.18,137.67,137.63,6.76916611]
[1763531522322,3.18,137.67,137.6,6.76916611]
[1763531522613,101.7652,137.69,137.61,9.22916611]
[1763531522614,3.18,137.65,137.61,9.22916611]
[1763531522818,0.05361883,137.64,137.62,0.05180412]
[1763531523122,0.05361883,137.64,137.62,2.51180412]
[1763531523818,0.05361883,137.64,137.62,0.05180412]
[1763531526314,0.05361883,137.64,137.63,2.46]
[1763531526518,19.7706082,137.74,137.63,2.46]
[1763531526519,3.13,137.71,137.64,2.46]
[1763531526911,3.13,137.71,137.66,2.46]
[1763531527131,3.13,137.74,137.67,9.22916611]
[1763531527520,0.04747701,137.72,137.69,2.50798788]
[1763531527819,3.13,137.78,137.71,9.22916611]
[1763531528128,3.13,137.78,137.72,13.30926611]
[1763531528426,3.13,137.78,137.72,6.5401]
[1763531528615,3.18409988,137.76,137.74,0.05526491]
[1763531529020,0.05409988,137.76,137.74,0.05526491]
[1763531529421,0.05409988,137.76,137.74,2.51526491]
[1763531531330,3.18409988,137.76,137.74,0.05526491]
[1763531531629,3.13,137.74,137.67,6.76916611]
[1763531531822,3.13,137.74,137.65,11.51467404]
[1763531531823,3.13,137.69,137.65,9.22916611]
[1763531532124,3.13,137.68,137.6,6.76916611]
[1763531532327,3.13,137.68,137.59,2.46]
[1763531532328,3.13,137.68,137.61,9.22916611]
[1763531532524,3.13,137.68,137.62,9.22916611]
[1763531532723,0.04857631,137.66,137.64,0.05163867]
[1763531532918,0.04857631,137.66,137.64,2.51163867]
[1763531533125,3.13,137.72,137.64,9.28080478]
[1763531533434,6.5411,137.71,137.64,9.28080478]
[1763531533733,3.13,137.71,137.64,9.28080478]
[1763531533936,3.13,137.71,137.64,2.51163867]
[1763531534122,0.05103712,137.69,137.64,2.51163867]
[1763531535121,3.18103712,137.69,137.64,2.51163867]
[1763531535321,3.13,137.68,137.64,0.05163867]
[1763531535618,3.13,137.68,137.64,2.51163867]
[1763531536230,0.05103712,137.69,137.64,2.51163867]
[1763531536622,3.13,137.68,137.64,9.28080478]
[1763531536830,3.13,137.68,137.64,2.51163867]
[1763531537030,0.05103712,137.69,137.64,2.51163867]
[1763531538231,0.05103712,137.69,137.64,9.05553867]
[1763531538435,0.05103712,137.69,137.65,2.46]
[1763531538939,3.18103712,137.69,137.64,0.05163867]
[1763531539123,104.94643712,137.69,137.64,0.05163867]
[1763531539434,3.13,137.66,137.64,0.05163867]
[1763531540021,9.6739,137.65,137.57,2.46]
[1763531540227,9.6739,137.65,137.57,9.22916611]
[1763531540431,9.6739,137.65,137.55,47.61467404]
[1763531540432,3.13,137.61,137.56,6.76916611]
[1763531540625,3.13,137.61,137.56,9.22916611]
[1763531540928,0.04952079,137.6,137.57,2.50826405]
[1763531541938,0.04952079,137.6,137.57,0.04826405]
[1763531542131,3.17952079,137.6,137.57,0.04826405]
[1763531542336,0.04952079,137.6,137.57,2.50826405]
[1763531543635,0.04952079,137.6,137.58,2.46]
[1763531544538,3.17,137.66,137.59,2.46]
[1763531545638,0.04850275,137.64,137.61,0.04839298]
[1763531545826,3.21850275,137.64,137.61,0.04839298]
[1763531548842,3.17,137.63,137.61,0.04839298]
[1763531550636,0.04850275,137.64,137.61,2.50839298]
[1763531551137,0.04850275,137.64,137.61,9.05379298]
[1763531551451,0.04850275,137.64,137.61,0.04839298]
[1763531551633,0.04850275,137.64,137.61,2.50839298]
[1763531553239,3.17,137.72,137.61,2.50839298]
[1763531553432,2.97,137.71,137.62,2.46]
[1763531553632,2.97,137.71,137.63,9.0044]
[1763531553834,2.97,137.71,137.63,2.46]
[1763531554344,0.05413809,137.68,137.66,2.50897294]
[1763531554538,0.04938375,137.68,137.66,2.51375202]
[1763531555134,2.97,137.74,137.66,9.28291813]
[1763531555531,2.97,137.74,137.66,2.51375202]
[1763531555735,9.5096,137.74,137.66,2.51375202]
[1763531555933,2.97,137.73,137.66,2.51375202]
[1763531556139,140.2732,137.76,137.66,2.51375202]
[1763531556140,3.01645528,137.71,137.68,0.04876935]
[1763531556345,0.04645528,137.71,137.68,0.04876935]
[1763531557032,3.01645528,137.71,137.68,0.04876935]
[1763531558347,0.04645528,137.71,137.68,2.50876935]
[1763531558738,38.56,137.76,137.69,9.0016]
[1763531558938,2.97,137.77,137.7,2.46]
[1763531559343,2.97,137.77,137.71,2.46]
[1763531559644,2.97,137.77,137.73,2.50643287]
[1763531560151,2.97,137.77,137.73,0.04643287]
[1763531560348,9.5092,137.75,137.73,0.04643287]
[1763531560533,2.97,137.74,137.73,0.04643287]
[1763531561541,2.97,137.77,137.73,0.04643287]
[1763531561847,2.97,137.76,137.73,0.04643287]
[1763531562837,2.97,137.78,137.73,0.04643287]
[1763531563748,9.5078,137.78,137.73,2.50643287]
[1763531563950,2.97,137.77,137.73,0.04643287]
[1763531564538,104.6884,137.75,137.73,0.04643287]
[1763531564753,2.97,137.75,137.73,0.04643287]
[1763531565349,101.7259,137.74,137.66,6.76916611]
[1763531565543,2.97,137.72,137.65,38.54]
[1763531566048,6.5411,137.71,137.65,38.54]
[1763531566347,6.5411,137.71,137.65,41.05]
[1763531566842,2.97,137.72,137.65,41.05]
[1763531567048,0.04643287,137.69,137.67,2.5646975]
[1763531571943,2.97,137.73,137.67,2.5646975]
[1763531572151,2.97,137.76,137.67,2.5646975]
[1763531572352,2.97,137.76,137.67,2.51]
[1763531572753,2.97,137.8,137.69,6.73905106]
[1763531572939,104.6832,137.76,137.73,0.04752367]
[1763531573249,104.6832,137.76,137.68,6.73905106]
[1763531573250,2.97,137.71,137.64,2.51]
[1763531573642,104.7201,137.71,137.63,38.54]
[1763531573844,2.97,137.69,137.61,2.55]
[1763531574045,2.97,137.66,137.58,6.73905106]
[1763531574355,3.01752367,137.63,137.61,0.04665558]
[1763531575053,0.04752367,137.63,137.61,0.04665558]
[1763531575245,3.01752367,137.63,137.61,0.04665558]
[1763531578251,0.04752367,137.63,137.61,2.59665558]
[1763531580657,2.97,137.67,137.61,2.59665558]
[1763531580959,2.97,137.67,137.61,0.04665558]
[1763531581146,2.97,137.66,137.61,0.04665558]
[1763531582650,2.97,137.65,137.61,0.04665558]
[1763531582851,2.97,137.63,137.61,0.04665558]
[1763531583061,9.515,137.63,137.61,0.04665558]
[1763531583354,2.97,137.62,137.61,0.04665558]
[1763531583751,3.06,137.6,137.54,47.85566757]
[1763531583953,3.06,137.6,137.54,41.11]
[1763531584458,3.06,137.6,137.54,38.56]
[1763531584757,3.06,137.59,137.56,0.05579141]
[1763531584976,0.04665558,137.58,137.56,0.05579141]
[1763531587151,3.10665558,137.58,137.56,0.05579141]
[1763531588851,0.04665558,137.58,137.56,0.05579141]
[1763531589063,0.04665558,137.58,137.56,2.61579141]
[1763531589260,0.04665558,137.58,137.56,0.05579141]
[1763531589555,3.06,137.65,137.57,2.56]
[1763531589963,3.06,137.64,137.55,2.56]
[1763531590362,3.06,137.64,137.58,0.05515212]
[1763531590563,3.06,137.62,137.58,0.05515212]
[1763531591257,3.06,137.6,137.58,0.05515212]
[1763531593067,3.06,137.68,137.58,2.61515212]
[1763531593261,3.06,137.67,137.62,0.04943937]
[1763531593473,3.06,137.67,137.63,0.0551268]
[1763531593763,3.06,137.66,137.63,0.0551268]
[1763531593963,104.8483,137.66,137.63,0.0551268]
[1763531594166,9.6039,137.65,137.63,0.0551268]
[1763531594366,3.06,137.64,137.63,0.0551268]
[1763531595769,3.06,137.66,137.63,0.0551268]
[1763531596170,3.06,137.64,137.63,0.0551268]
[1763531598872,3.06,137.66,137.63,0.0551268]
[1763531599075,3.06,137.72,137.63,0.0551268]
[1763531599266,3.06,137.72,137.66,0.05551527]
[1763531600576,6.5412,137.71,137.66,0.05551527]
[1763531600768,3.06,137.7,137.66,0.05551527]
[1763531601572,3.06,137.7,137.66,2.61551527]
[1763531601775,48.1601,137.73,137.66,2.61551527]
[1763531601973,3.06,137.72,137.66,2.61551527]
[1763531602172,3.06,137.7,137.66,0.05551527]
[1763531602971,3.13,137.68,137.66,0.05551527]
[1763531604069,9.6727,137.68,137.66,0.05551527]
[1763531604271,3.13,137.67,137.66,0.05551527]
[1763531609873,9.6739,137.65,137.59,9.30566757]
[1763531610076,3.13,137.63,137.57,6.74566757]
[1763531610273,3.13,137.63,137.55,6.74566757]
[1763531610576,9.6758,137.61,137.55,6.74566757]
[1763531610782,3.18084557,137.59,137.57,0.05093333]
[1763531611181,3.18084557,137.59,137.57,2.61093333]
[1763531611182,0.05084557,137.59,137.57,2.61093333]
[1763531611483,3.13,137.63,137.57,4.07093333]
[1763531611675,3.13,137.63,137.57,9.15833333]
[1763531614180,3.13,137.63,137.57,15.9040009]
[1763531614577,3.13,137.63,137.58,9.1069]
[1763531614876,9.6748,137.63,137.58,2.56]
[1763531615181,3.1,137.62,137.58,2.56]